Workbook

Sheet Straights
C2: Eaton's B-Line Business KwikSplice™ Cable Tray Savings Calculator
C3: Optimizing Support Spans and Minimizing Labor Costs
C4: The purpose of this calculator is to demonstrate total cost differences between B-Line's KwikSplice™ cable tray and other cable management methods. This sheet focuses on differences in material costs, labor costs associated with straight sections, and possible support structure cost savings.
A5: Instructions: | E5: Make changes in yellow shaded areas for specified project.
E6: Select choice from blue drop down menus.
A8: Labor Rate ($/hr) | G8: 100 | I8: Wirebasket Splice Method (if applicable) | O8: WASHER SPL KIT
A9: Cable Tray Straight Run Length (ft) | G9: 1000 | I9: Welded Cable Tray Splice Hardware Quantity (per splice) | O9: 4
A10: Support Install Time (minutes) ** | G10: 30
A11: Cable Management Comparison Type | G11: Wirebasket
A12: ="Select " &G11&" Height (Inches)" -> Select Wirebasket Height (Inches) | G12: 4
A13: ="Select " &G11&" Width (Inches)" -> Select Wirebasket Width (Inches) | G13: 24 | T13: ='Reference Data'!T17 -> W4
A14: ="Select " &G11&" Length (Feet)" -> Select Wirebasket Length (Feet) | G14: 10
A16: Splice Location Material/Labor Savings | C16: Splice Location Quantity | E16: Straight Section Splice Quantity | G16: Time Per Splice (Minutes) *** | I16: Labor Cost Per Splice Location | K16: Material Cost Per Splice Location * | O16: Splice Material and Labor Cost | R16: Splice Material and Labor Savings
A17: =IF(G11="Wirebasket",'Reference Data'!A2,'Reference Data'!B2) -> FT4X24X10 | C17: =ROUNDUP(G9/G14,0) -> 100 | E17: =IF(G11="Wirebasket",IF(O8='Reference Data'!B5,VLOOKUP('Reference Data'!A2,'Reference Data'!A5:E31,2,FALSE),IF(O8='Reference Data'!C5,VLOOKUP('Reference Data'!A2,'Reference Data'!A5:E31,3,FALSE),IF(O8='Reference Data'!D5,VLOOKUP('Reference Data'!A2,'Reference Data'!A5:E31,4,FALSE),IF(O8='Reference Data'!E5,VLOOKUP('Reference Data'!A2,'Reference Data'!A5:E31,5,2),0)))),2) -> 8 | G17: =IF(G11="Wirebasket",(IF(O8='Reference Data'!A42,'Reference Data'!B42,IF(O8='Reference Data'!A43,'Reference Data'!B43,IF(O8='Reference Data'!A44,'Reference Data'!B44,IF(O8='Reference Data'!A45,'Reference Data'!B45,FALSE))))),'Reference Data'!B56) -> 0.5 | I17: =IF(OR(E17=(Straights!B3),E17=('Reference Data'!D11)),0,(((E17*G17)/60)*G8)) -> 6.666666667 | K17: =IF(G11="Wirebasket",(IF(O8='Reference Data'!A42,2.3*E17,IF(O8='Reference Data'!A43,2.8*E17,IF(O8='Reference Data'!A44,0.7*E17,IF(O8='Reference Data'!A45,2.4*E17,FALSE))))),0) -> 18.4 | O17: =IF(OR(E17='Reference Data'!B6,E17='Reference Data'!D11),(I17*C17),(I17*C17)+(K17*C17)) -> 2506.666667
R18: =IF(OR(E17='Reference Data'!B6,E17='Reference Data'!D11),"Reselect Proper Splice",O17-O19) -> 2226.666667
A19: Kwik-Splice Cable Tray | C19: =ROUNDUP(G9/G25,0) -> 84 | E19: 2 | G19: ='Reference Data'!B55 -> 1 | I19: =(((E19*G19)/60)*G8) -> 3.333333333 | K19: 0 | O19: =(I19*C19)+(K19*E19*C19) -> 280
A21: Support Structure Savings | E21: Tray Price per Foot * | G21: Support Span (ft) | I21: Individual Support Cost ** | K21: Number of Supports Required | M21: Labor Per Support Location | O21: Cable Tray & Support Cost | R21: Cable Tray Material and Support Savings
A23: =IF(G11="Wirebasket",'Reference Data'!A2,'Reference Data'!B2) -> FT4X24X10 | E23: 4 | G23: 5 | I23: 75 | K23: =(G9/G23) -> 200 | M23: =G8*G10/60 -> 50 | N23: = | O23: =(G9*E23)+(K23*(I23+M23)) -> 29000 | R23: =O23-O25 -> 14333.33333
A25: Kwik-Splice Cable Tray | E25: 4.25 | G25: 12 | I25: 75 | K25: =(G9/G25) -> 83.33333333 | M25: =G8*G10/60 -> 50 | N25: = | O25: =(G9*E25)+(K25*(I25+M25)) -> 14666.66667
R26: Total Savings
R27: =IF(R18="Reselect Proper Splice",R23,R23+R18) -> 16560
C28: Include linear footage calculated for fittings in Cable Tray Project Length. Material cost difference factors are assumed to be the same across fittings and straight sections (excluding labor). | R28: =(IF(R27>=0,"KwikSplice",A23)&" IS"&" BEST"&" OPTION") -> KwikSplice IS BEST OPTION
A29: * | C29: One pair of splice plates are included in the price of a straight section of Kwik Splice Cable Tray. Wirebasket splicing accessories are sold seperately.
A30: ** | C30: Indoor support includes anchors, threaded rod, trapeze structure (strut commonly used), hold down clamps, etc. Outdoor supports include structural steel support columns. Be sure to add support labor cost to material cost of each support (See support and Splice Install Time input cells). This will make a dramatic difference to the total.
A31: *** | B31: Labor rates for splicing accessories based on industry standard practice and are to be used as an estimate only.

Sheet Fittings
C2: Eaton's B-Line Business KwikSplice™ Cable Tray Savings Calculator
C3: Fittings
C4: The purpose of this calculator is to demonstrate total cost differences between between B-Line's KwikSplice™ cable tray and other cable management methods. This sheet focuses on differences in labor costs associated with splicing and field fabricating fittings.
A5: Instructions: | E5: Make changes in yellow shaded areas for specified project.
E6: Select choice from blue drop down menus.
A8: Horizontal Bends | G8: 30 | J8: Radiused Bends * (applies to Wirebasket only)
A9: Horizontal Tees | G9: 4 | J9: YES
A10: Horizontal Crosses | G10: 5
E11: Vertical Bends | G11: 15 | J11: Flextray Cutting Tool ** (applies to Wirebasket only)
J12: CLEANSHEAR (MANUAL)
A13: =IF(Straights!G11="Wirebasket",'Reference Data'!A2,'Reference Data'!B2)&" SELECTED" -> FT4X24X10 SELECTED
C14: Total Splice Quantity | E14: Total Tray Field Cuts | G14: Splice Installation Time (Minutes) *** | I14: Fitting Splice Labor Cost | K14: Total Field Cut Time (Minutes) | M14: Fitting Cut Labor Cost | O14: Fitting Installation Cost | R14: Labor Savings
A15: =IF(Straights!G11="Wirebasket",'Reference Data'!A2,'Reference Data'!B2) -> FT4X24X10 | C15: =A16+C16 -> 960 | E15: =IF(Straights!G11="Wirebasket",(IF(J9='Reference Data'!A48,((G8*(VLOOKUP('Reference Data'!A2,'Reference Data'!A6:O31,7,FALSE)))+(G9*(VLOOKUP('Reference Data'!A2,'Reference Data'!A6:O31,11,FALSE)))+(G10*(VLOOKUP('Reference Data'!A2,'Reference Data'!A6:O31,13,FALSE)))+(G11*(VLOOKUP('Reference Data'!A2,'Reference Data'!A6:O31,15,FALSE)))),IF(J9='Reference Data'!A49,((G8*(VLOOKUP('Reference Data'!A2,'Reference Data'!A6:O31,9,FALSE)))+(G9*(VLOOKUP('Reference Data'!A2,'Reference Data'!A6:O31,11,FALSE)))+(G10*(VLOOKUP('Reference Data'!A2,'Reference Data'!A6:O31,13,FALSE)))+(G11*(VLOOKUP('Reference Data'!A2,'Reference Data'!A6:O31,15,FALSE))))))),0) -> 10186 | G15: =IF(Straights!G11="Wirebasket",(C15*(IF(Straights!O8='Reference Data'!A42,'Reference Data'!B42,IF(Straights!O8='Reference Data'!A43,'Reference Data'!B43,IF(Straights!O8='Reference Data'!A44,'Reference Data'!B42,IF(Straights!O8='Reference Data'!A45,'Reference Data'!B42,FALSE)))))),C15*'Reference Data'!B56) -> 480 | I15: =(G15/60)*Straights!G8 -> 800 | K15: =IF(J12='Reference Data'!A51,('Reference Data'!B51)/60*Fittings!E15,IF(J12='Reference Data'!A52,('Reference Data'!B52)/60*Fittings!E15,FALSE)) -> 1332.668333 | M15: =(K15/60)*Straights!G8 -> 2221.113889 | O15: =M15+I15 -> 3021.113889
A16: =IF(Straights!G11="Wirebasket",(IF(J9='Reference Data'!A48,((G8*(VLOOKUP('Reference Data'!A2,'Reference Data'!A6:O31,6,FALSE)))+(G9*(VLOOKUP('Reference Data'!A2,'Reference Data'!A6:O31,10,FALSE)))+(G10*(VLOOKUP('Reference Data'!A2,'Reference Data'!A6:O31,12,FALSE)))+(G11*(VLOOKUP('Reference Data'!A2,'Reference Data'!A6:O31,14,FALSE)))),IF(J9='Reference Data'!A49,((G8*(VLOOKUP('Reference Data'!A2,'Reference Data'!A6:O31,8,FALSE)))+(G9*(VLOOKUP('Reference Data'!A2,'Reference Data'!A6:O31,10,FALSE)))+(G10*(VLOOKUP('Reference Data'!A2,'Reference Data'!A6:O31,12,FALSE)))+(G11*(VLOOKUP('Reference Data'!A2,'Reference Data'!A6:O31,14,FALSE))))))),Fittings!C17) -> 416 | C16: =IF(Straights!G11="Wirebasket",(Straights!E17*(Fittings!G8+(Fittings!G9*2)+(Fittings!G10*3)+Fittings!G11)),0) -> 544 | R16: =IF(OR(E15='Reference Data'!B6,E15='Reference Data'!D11),"Reselect Proper Splice",O15-O17) -> 2794.447222
A17: Kwik-Splice Cable Tray | C17: =(G8*2)+(G9*4)+(G10*6)+(G11*2) -> 136 | E17: 0 | G17: =C17*'Reference Data'!B55 -> 136 | I17: =((G17/60)*Straights!G8) -> 226.6666667 | K17: 0 | M17: =(K17/60)*Straights!G10 -> 0 | O17: =M17+I17 -> 226.6666667
R19: Total Savings ****
R20: =R16 -> 2794.447222
A21: * | C21: Radiused bends are based on a 12" radius. | R21: =(IF(R20>=0,"KwikSplice",A15)&" IS"&" BEST"&" OPTION") -> KwikSplice IS BEST OPTION
A22: ** | C22: Field cutting Flextray wirebasket times are based on industry experience and are an average based on the time it takes to set up and cut through one cross sectional wire.
A23: *** | B23: Labor rates for splicing accessories based on industry standard practice and are to be used as an estimate only. Flextray wirebasket involves all connecting hardware splices (Note: FLEXMATE2 or FTSTLC can not be used to connect fittings. Only WASHER SPL KIT, FTSWN, or other approved splice hardware can be used to connect fittings). Kwik Splice cable tray involves one set of splice plates and corresponding hardware needed to connect to sections of cable tray together.
A24: **** | B24: Material Cost differences for fittings are taken into consideration on "Straights" sheet. Redi-rail and Flextray fittings are assumed to be the same as straight section pricing per linear foot for simplicity purposes. Cable tray pricing may vary.

Sheet Results
A1: Results Overview
A2: =IFERROR("Based on the variables given, choosing B-Line's KwikSplice cable tray system for your project can yield savings up to $"&TEXT(Straights!R27,"#,###")&" in labor, material and support span costs for straight sections, and up to $"&TEXT(Fittings!R20,"#,###")&" in fitting support costs for a total potential maximum savings of $"&TEXT('Reference Data'!A64,"#,###")&" on your project.","Please enter values for all of the inputs to view the completed analysis.") -> Based on the variables given, choosing B-Line's KwikSplice cable tray system for your project can yield savings up to $16,560 in labor, material and support span costs for straight sections, and up to $2,794 in fitting support costs for a total potential maximum savings of $19,354 on your project.
A6: Results Details
A8: Straight Section Analysis
A9: ="Based on the variables you selected, the total expected savings associated with purchasing and installing straight sections is $"&TEXT(Straights!R27,"#,###")&". This consists of $"&TEXT('[1]Cable Tray vs. Supports'!V20,"#,###")&" in support savings with only a $"&TEXT('Reference Data'!B69,"#,###")&" increase in cable tray material price." -> Based on the variables you selected, the total expected savings associated with purchasing and installing straight sections is $16,560. This consists of $ in support savings with only a $250 increase in cable tray material price.
A14: Fitting Assembly Solutions Analysis
A15: ="By utilizing KwikSplice cable tray, you can save $"&TEXT(Fittings!R20,"#,###")&" on this project. By eliminating the labor required to install and/or fabricate fittings, you could save $"&TEXT(Fittings!R20,"#,###")&" on this project." -> By utilizing KwikSplice cable tray, you can save $2,794 on this project. By eliminating the labor required to install and/or fabricate fittings, you could save $2,794 on this project.

Sheet Reference Data (hidden)
A1: Flextray P/N Selection | B1: Cable Tray P/N
A2: =IF(Straights!G11="Wirebasket",("FT"&Straights!G12&"X"&Straights!G13&"X10"),FALSE) -> FT4X24X10 | B2: =IF(Straights!G11="Welded Cable Tray",(Straights!G12&"x"&Straights!G13&" Cable Tray"),0) -> 0
F4: Radiused HB | H4: No Radius HB | J4: Horizontal Tee | L4: Horizontal Cross | N4: Vertical Bend
A5: Flextray P/N's | B5: WASHER SPL KIT | C5: FTSWN | D5: FLEXMATE2 | E5: FTSTLC | F5: Splices | G5: Cuts | H5: Splices | I5: Cuts | J5: Splices | K5: Cuts | L5: Splices | M5: Cuts | N5: Splices | O5: Cuts | Q5: Redi-Rail P/N's
A6: FT2X2x10 | B6: NC | C6: NC | D6: NC | E6: 2 | F6: 3 | G6: =2*3*2 -> 12 | H6: 1 | I6: =2*3 -> 6 | J6: 2 | K6: 5 | L6: =J6*2 -> 4 | M6: =K6*2 -> 10 | N6: 0 | O6: 4 | Q6: RSI | R6: 04 | S6: A | T6: 06 | U6: SL | W6: 06 | X6: 120
A7: FT2X4x10 | B7: NC | C7: NC | D7: NC | E7: 2 | F7: 3 | G7: =2*4*2 -> 16 | H7: 1 | I7: =2*4 -> 8 | J7: 2 | K7: 6 | L7: =J7*2 -> 4 | M7: =K7*2 -> 12 | N7: 0 | O7: 4 | R7: 05 | T7: 09 | V7: 050KO | W7: 09 | X7: 144
A8: FT2X6x10 | B8: 4 | C8: 4 | D8: 5 | E8: 4 | F8: 4 | G8: =2*5*3 -> 30 | H8: 1 | I8: =2*5 -> 10 | J8: 3 | K8: 7 | L8: 6 | M8: 14 | N8: 0 | O8: 4 | R8: 06 | T8: 12 | V8: 075KO | W8: 12
A9: FT2X8x10 | B9: 4 | C9: 4 | D9: 5 | E9: 4 | F9: 5 | G9: =2*6*4 -> 48 | H9: 1 | I9: =2*6 -> 12 | J9: 3 | K9: 8 | L9: 6 | M9: 16 | N9: 0 | O9: 4 | R9: 07 | T9: VB | V9: 100KO | W9: 18
A10: FT2X12x10 | B10: 4 | C10: 4 | D10: 5 | E10: 4 | F10: 7 | G10: =2*8*6 -> 96 | H10: 1 | I10: =2*8 -> 16 | J10: 4 | K10: 9 | L10: 8 | M10: 18 | N10: 0 | O10: 4 | T10: SB | W10: 24
A11: FT2X16x10 | B11: 4 | C11: 4 | D11: NOT RATED | E11: 4 | F11: 8 | G11: =2*10*7 -> 140 | H11: 3 | I11: =2*10 -> 20 | J11: 4 | K11: 10 | L11: 8 | M11: 20 | N11: 0 | O11: 4 | W11: 30
A12: FT2X18x10 | B12: 4 | C12: 4 | D12: NOT RATED | E12: 4 | F12: 9 | G12: =2*11*7 -> 154 | H12: 3 | I12: =2*11 -> 22 | J12: 4 | K12: 11 | L12: 8 | M12: 22 | N12: 0 | O12: 4 | W12: 36
A13: FT2X20x10 | B13: 5 | C13: 5 | D13: NOT RATED | E13: 5 | F13: 11 | G13: =2*12*10 -> 240 | H13: 3 | I13: =2*12 -> 24 | J13: 4 | K13: 11 | L13: 8 | M13: 22 | N13: 0 | O13: 4
A14: FT2X24x10 | B14: 5 | C14: 5 | D14: NOT RATED | E14: 5 | F14: 12 | G14: =2*14*11 -> 308 | H14: 3 | I14: =2*14 -> 28 | J14: 4 | K14: 12 | L14: 8 | M14: 24 | N14: 0 | O14: 4
A15: FT2X30x10 | B15: 6 | C15: 6 | D15: NOT RATED | E15: 6 | F15: 14 | G15: =2*17*13 -> 442 | H15: 4 | I15: =2*17 -> 34 | J15: 5 | K15: 13 | L15: 10 | M15: 26 | N15: 0 | O15: 4
A16: FT2X32x10 | B16: 6 | C16: 6 | D16: NOT RATED | E16: 6 | F16: 14 | G16: =2*18*13 -> 468 | H16: 4 | I16: =2*18 -> 36 | J16: 5 | K16: 13 | L16: 10 | M16: 26 | N16: 0 | O16: 4
A17: FT4X4x10 | B17: 4 | C17: 4 | D17: 5 | E17: 4 | F17: 3 | G17: =2*5*2 -> 20 | H17: 1 | I17: =2*5 -> 10 | J17: 2 | K17: 8 | L17: 4 | M17: 16 | N17: 0 | O17: 6 | S17: =IF(Straights!G11="Wirebasket","W",(IF(Straights!G11="Welded Cable Tray","CT",FALSE))) -> W | T17: =S17&S18&"" -> W4
A18: FT4X6x10 | B18: 5 | C18: 5 | D18: 6 | E18: 5 | F18: 4 | G18: =2*6*3 -> 36 | H18: 1 | I18: =2*6 -> 12 | J18: 3 | K18: 9 | L18: 6 | M18: 18 | N18: 0 | O18: 6 | S18: =IF(Straights!G12=2,"2",(IF(Straights!G12=4,"4",(IF(Straights!G12=5,"5",(IF(Straights!G12=6,"6",FALSE))))))) -> 4
A19: FT4X8x10 | B19: 6 | C19: 6 | D19: 7 | E19: 6 | F19: 5 | G19: =2*7*4 -> 56 | H19: 1 | I19: =2*7 -> 14 | J19: 3 | K19: 10 | L19: 6 | M19: 20 | N19: 0 | O19: 6 | Q19: 2
A20: FT4X12x10 | B20: 6 | C20: 6 | D20: 7 | E20: 6 | F20: 7 | G20: =2*9*6 -> 108 | H20: 1 | I20: =2*9 -> 18 | J20: 4 | K20: 11 | L20: 8 | M20: 22 | N20: 0 | O20: 6 | Q20: 4
A21: FT4X16x10 | B21: 7 | C21: 7 | D21: NOT RATED | E21: 7 | F21: 8 | G21: =2*11*7 -> 154 | H21: 3 | I21: =2*11 -> 22 | J21: 4 | K21: 12 | L21: 8 | M21: 24 | N21: 0 | O21: 6 | Q21: 6
A22: FT4X18x10 | B22: 7 | C22: 7 | D22: NOT RATED | E22: 7 | F22: 9 | G22: =2*12*7 -> 168 | H22: 3 | I22: =2*12 -> 24 | J22: 4 | K22: 13 | L22: 8 | M22: 26 | N22: 0 | O22: 6 | Q22: W2 | S22: W4 | U22: W6
A23: FT4X20x10 | B23: 7 | C23: 7 | D23: NOT RATED | E23: 7 | F23: 11 | G23: =2*13*10 -> 260 | H23: 3 | I23: =2*13 -> 26 | J23: 4 | K23: 13 | L23: 8 | M23: 26 | N23: 0 | O23: 6 | Q23: Wirebasket Height | R23: Widths | S23: Wirebasket Height | T23: Widths | U23: Wirebasket Height | V23: Widths | W23: Length
A24: FT4X24x10 | B24: 8 | C24: 8 | D24: NOT RATED | E24: 8 | F24: 12 | G24: =2*15*11 -> 330 | H24: 3 | I24: =2*15 -> 30 | J24: 4 | K24: 14 | L24: 8 | M24: 28 | N24: 0 | O24: 6 | Q24: 2 | R24: 2 | S24: 4 | T24: 4 | U24: 6 | V24: 8 | W24: 10
A25: FT4X30x10 | B25: 9 | C25: 9 | D25: NOT RATED | E25: 9 | F25: 14 | G25: =2*18*13 -> 468 | H25: 4 | I25: =2*18 -> 36 | J25: 5 | K25: 15 | L25: 10 | M25: 30 | N25: 0 | O25: 6 | R25: 4 | T25: 6 | V25: 12
A26: FT6X8x10 | B26: 6 | C26: 6 | D26: 7 | E26: 6 | F26: 5 | G26: =2*8*4 -> 64 | H26: 1 | I26: =2*8 -> 16 | J26: 3 | K26: 12 | L26: 6 | M26: 24 | N26: 0 | O26: 8 | R26: 6 | T26: 8 | V26: 16
A27: FT6X12x10 | B27: 6 | C27: 6 | D27: 7 | E27: 6 | F27: 7 | G27: =2*10*6 -> 120 | H27: 1 | I27: =2*10 -> 20 | J27: 4 | K27: 13 | L27: 8 | M27: 26 | N27: 0 | O27: 8 | R27: 8 | T27: 12 | V27: 18
A28: FT6X16x10 | B28: 7 | C28: 7 | D28: NOT RATED | E28: 7 | F28: 8 | G28: =2*12*7 -> 168 | H28: 3 | I28: =2*12 -> 24 | J28: 4 | K28: 14 | L28: 8 | M28: 28 | N28: 0 | O28: 8 | R28: 12 | T28: 16 | V28: 20
A29: FT6X18x10 | B29: 7 | C29: 7 | D29: NOT RATED | E29: 7 | F29: 9 | G29: =2*13*7 -> 182 | H29: 3 | I29: =2*13 -> 26 | J29: 4 | K29: 15 | L29: 8 | M29: 30 | N29: 0 | O29: 8 | R29: 16 | T29: 18 | V29: 24
A30: FT6X20x10 | B30: 7 | C30: 7 | D30: NOT RATED | E30: 7 | F30: 11 | G30: =2*14*10 -> 280 | H30: 3 | I30: =2*14 -> 28 | J30: 4 | K30: 15 | L30: 8 | M30: 30 | N30: 0 | O30: 8 | R30: 18 | T30: 20
A31: FT6X24x10 | B31: 8 | C31: 8 | D31: NOT RATED | E31: 8 | F31: 12 | G31: =2*16*11 -> 352 | H31: 3 | I31: =2*16 -> 32 | J31: 4 | K31: 16 | L31: 8 | M31: 32 | N31: 0 | O31: 8 | R31: 20 | T31: 24
R32: 24
R33: 30
R34: 32
A35: Flextray Support Span | Q35: CT4 | S35: CT5 | U35: CT6
A36: 5 | Q36: Cable Tray Height | S36: Cable Tray Height | U36: Cable Tray Height | W36: Length
A37: 6 | Q37: 4 | R37: 6 | S37: 5 | T37: 6 | U37: 6 | V37: 6 | W37: 10
A38: 7 | Q38: 5 | R38: 9 | T38: 9 | V38: 9 | W38: 12
A39: 8 | Q39: 6 | R39: 12 | T39: 12 | V39: 12 | W39: 20
R40: 18 | T40: 18 | V40: 18
B41: Labor per splice (min) | R41: 24 | T41: 24 | V41: 24
A42: WASHER SPL KIT | B42: 0.5 | R42: 30 | T42: 30 | V42: 30
A43: FTSWN | B43: 0.33 | R43: 36 | T43: 36 | V43: 36
A44: FLEXMATE2 | B44: 0.25
A45: FTSTLC | B45: 0.25
A48: YES
A49: NO
B50: SECONDS
A51: CLEANSHEAR (MANUAL) | B51: =B52*1.57 -> 7.85
A52: BATTERY OPERATED TOOL | B52: 5
B54: Minutes (per splice)
A55: "Kwik Splice" Splice Time | B55: 1
A56: Welded Cable Tray | B56: =0.5*Straights!O9 -> 2
A58: Cable Tray Types
A59: Wirebasket
A60: Welded Cable Tray
A63: Total Saved
A64: =Straights!R27+Fittings!R20 -> 19354.44722
A66: Straight Section Material Cost
A67: Tray Being Compared | B67: =Straights!E23*Straights!G9 -> 4000
A68: Kwik Splice | B68: =Straights!E25*Straights!G9 -> 4250
A69: Difference | B69: =B68-B67 -> 250
A72: Lengths
A73: Wirebasket | B73: 10
A74: Welded Cable tray | B74: 10
A75: Welded Cable tray | B75: 12
A76: Welded Cable tray | B76: 20
